fUSD/lending_fUSD_20250109
["ID","MTS","AMOUNT","RATE_DAILY","PERIOD"]
[348232208,1736407839368,-500.0,9.993e-05,2]
[348232210,1736407839378,-500.0,9.993e-05,2]
[348232212,1736407839388,-500.0,9.993e-05,2]
[348232213,1736407839397,-500.0,9.993e-05,2]
[348232215,1736407839407,-500.0,9.993e-05,2]
[348232217,1736407839416,-500.0,9.993e-05,2]
[348232219,1736407839425,-503.04899765,9.993e-05,2]
[348232220,1736407839435,-500.0,9.993e-05,2]
[348232222,1736407839444,-500.0,9.993e-05,2]
[348232224,1736407839454,-500.0,9.993e-05,2]
[348232226,1736407839464,-500.0,9.993e-05,2]
[348232227,1736407839473,-179.55916,9.993e-05,2]
[348232229,1736407839482,-500.0,9.993e-05,2]
[348232231,1736407839492,-500.0,9.993e-05,2]
[348232233,1736407839501,-500.0,9.993e-05,2]
[348232235,1736407839511,-500.0,9.993e-05,2]
[348232237,1736407839523,-500.0,9.993e-05,2]
[348232239,1736407839532,-500.0,9.993e-05,2]
[348232240,1736407839542,-500.0,9.993e-05,2]
[348232242,1736407839551,-501.85316229,9.993e-05,2]
[348232244,1736407839560,-170.833385,9.993e-05,2]
[348232246,1736407839570,-500.0,9.993e-05,2]
[348232247,1736407839579,-500.0,9.993e-05,2]
[348232249,1736407839589,-500.0,9.993e-05,2]
[348232251,1736407839598,-500.0,9.993e-05,2]
[348232253,1736407839608,-500.99187282,9.993e-05,2]
[348232255,1736407839618,-500.0,9.993e-05,2]
[348232257,1736407839628,-500.0,9.993e-05,2]
[348232258,1736407839640,-686.07,9.993e-05,2]
[348232260,1736407839649,-641.98429978,9.993e-05,2]
[348232262,1736407839659,-446.68840048,9.993e-05,2]
[348232264,1736407839668,-500.0,9.993e-05,2]
[348232266,1736407839677,-500.0,9.993e-05,2]
[348232267,1736407839687,-500.0,9.993e-05,2]
[348232269,1736407839697,-500.0,9.993e-05,2]
[348232271,1736407839706,-614.66333969,9.993e-05,2]
[348232273,1736407839715,-500.0,9.993e-05,2]
[348232275,1736407839725,-500.0,9.993e-05,2]
[348232277,1736407839734,-500.0,9.993e-05,2]
[348232279,1736407839743,-500.0,9.993e-05,2]
[348232281,1736407839752,-535.96604094,9.993e-05,2]
[348232283,1736407839761,-500.0,9.993e-05,2]
[348232284,1736407839770,-500.0,9.993e-05,2]
[348232286,1736407839780,-500.0,9.993e-05,2]
[348232288,1736407839789,-500.0,9.993e-05,2]
[348232290,1736407839799,-500.0,9.993e-05,2]
[348232292,1736407839808,-501.01080818,9.993e-05,2]
[348232294,1736407839818,-500.0,9.993e-05,2]
[348232295,1736407839827,-500.0,9.993e-05,2]
[348232297,1736407839837,-501.22825599,9.993e-05,2]
[348232299,1736407839846,-392.24540261,9.993e-05,2]
[348232301,1736407839856,-501.31978582,9.993e-05,2]
[348232303,1736407839865,-500.0,9.993e-05,2]
[348232305,1736407839874,-500.0,9.993e-05,2]
[348232307,1736407839883,-500.0,9.993e-05,2]
[348232308,1736407839893,-500.0,9.993e-05,2]
[348232310,1736407839902,-506.48918803,9.993e-05,2]
[348232312,1736407839910,-500.0,9.993e-05,2]
[348232314,1736407839918,-500.0,9.993e-05,2]
[348232316,1736407839926,-500.0,9.993e-05,2]
[348232318,1736407839934,-500.0,9.993e-05,2]
[348232319,1736407839942,-500.0,9.993e-05,2]
[348232321,1736407839950,-392.51732751,9.993e-05,2]
[348232323,1736407839959,-500.0,9.993e-05,2]
[348232325,1736407839967,-500.0,9.993e-05,2]
[348232327,1736407839975,-296.84595655,9.993e-05,2]
[348232329,1736407839984,-1000.0,9.993e-05,2]
[348232331,1736407839994,-502.87979702,9.993e-05,2]
[348232333,1736407840003,-500.0,9.993e-05,2]
[348232335,1736407840012,-500.0,9.993e-05,2]
[348232337,1736407840021,-503.33462853,9.993e-05,2]
[348232338,1736407840031,-502.81687659,9.993e-05,2]
[348232340,1736407840041,-500.0,9.993e-05,2]
[348232342,1736407840050,-503.31007717,9.993e-05,2]
[348232344,1736407840060,-503.69324661,9.993e-05,2]
[348232346,1736407840069,-636.27,9.993e-05,2]
[348232348,1736407840079,-503.74187783,9.993e-05,2]
[348232350,1736407840089,-500.30961652,9.993e-05,2]
[348232352,1736407840098,-500.0,9.993e-05,2]
[348232354,1736407840108,-500.0,9.993e-05,2]
[348232356,1736407840117,-500.0,9.993e-05,2]
[348232357,1736407840127,-500.0,9.993e-05,2]
[348232358,1736407840136,-500.0,9.993e-05,2]
[348232359,1736407840145,-500.0,9.993e-05,2]
[348232360,1736407840153,-500.0,9.993e-05,2]
[348232361,1736407840162,-500.0,9.993e-05,2]
[348232362,1736407840171,-503.38772586,9.993e-05,2]
[348232363,1736407840180,-500.0,9.993e-05,2]
[348232364,1736407840189,-503.2974612,9.993e-05,2]
[348232365,1736407840198,-500.0,9.993e-05,2]
[348232366,1736407840207,-500.0,9.993e-05,2]
[348232367,1736407840216,-500.0,9.993e-05,2]
[348232368,1736407840225,-500.0,9.993e-05,2]
[348232370,1736407840233,-501.06791574,9.993e-05,2]
[348232371,1736407840243,-500.0,9.993e-05,2]
[348232373,1736407840252,-500.0,9.993e-05,2]
[348232375,1736407840261,-500.0,9.993e-05,2]
[348232377,1736407840270,-500.0,9.993e-05,2]
[348232379,1736407840280,-500.78213096,9.993e-05,2]
[348232381,1736407840289,-500.0,9.993e-05,2]
[348232383,1736407840299,-500.0,9.993e-05,2]
[348232385,1736407840308,-500.5995242,9.993e-05,2]
[348232387,1736407840318,-500.0,9.993e-05,2]
[348232389,1736407840327,-500.0,9.993e-05,2]
[348232391,1736407840337,-500.0,9.993e-05,2]
[348232393,1736407840346,-420.6999229,9.993e-05,2]
[348232395,1736407840355,-500.0,9.993e-05,2]
[348232397,1736407840364,-500.0,9.993e-05,2]
[348232399,1736407840373,-500.0,9.993e-05,2]
[348232401,1736407840383,-500.0,9.993e-05,2]
[348232403,1736407840394,-500.0,9.993e-05,2]
[348232405,1736407840403,-500.0,9.993e-05,2]
[348232407,1736407840412,-500.0,9.993e-05,2]
[348232409,1736407840421,-500.0,9.993e-05,2]
[348232411,1736407840430,-500.0,9.993e-05,2]
[348232413,1736407840439,-500.0,9.993e-05,2]
[348232414,1736407840448,-500.0,9.993e-05,2]
[348232416,1736407840459,-500.48007366,9.993e-05,2]
[348232419,1736407840468,-500.0,9.993e-05,2]
[348232420,1736407840477,-500.0,9.993e-05,2]
[348232423,1736407840487,-500.0,9.993e-05,2]
[348232425,1736407840497,-500.80541706,9.993e-05,2]
[348232427,1736407840506,-500.0,9.993e-05,2]
[348232429,1736407840518,-500.0,9.993e-05,2]
[348232430,1736407840528,-500.39832733,9.993e-05,2]
[348232432,1736407840538,-500.0,9.993e-05,2]
[348232434,1736407840547,-500.0,9.993e-05,2]
[348232437,1736407840558,-500.31264481,9.993e-05,2]
[348232439,1736407840568,-502.13424918,9.993e-05,2]
[348232440,1736407840577,-500.0,9.993e-05,2]
[348232443,1736407840586,-500.0,9.993e-05,2]
[348232445,1736407840598,-500.0,9.993e-05,2]
[348232447,1736407840607,-500.0,9.993e-05,2]
[348232448,1736407840617,-501.60678494,9.993e-05,2]
[348232450,1736407840627,-501.48196027,9.993e-05,2]
[348232452,1736407840639,-259.96327341,9.993e-05,2]
[348232454,1736407840648,-500.0,9.993e-05,2]
[348232456,1736407840658,-500.0,9.993e-05,2]
[348232459,1736407840667,-500.0,9.993e-05,2]
[348232461,1736407840677,-500.0,9.993e-05,2]
[348232462,1736407840686,-500.0,9.993e-05,2]
[348232464,1736407840696,-585.14,9.993e-05,2]
[348232467,1736407840705,-500.0,9.993e-05,2]
[348232468,1736407840714,-500.0,9.993e-05,2]
[348232471,1736407840724,-501.45989915,9.993e-05,2]
[348232472,1736407840733,-500.0,9.993e-05,2]
[348232475,1736407840742,-500.0,9.993e-05,2]
[348232476,1736407840751,-500.66630858,9.993e-05,2]
[348232478,1736407840761,-500.0,9.993e-05,2]
[348232480,1736407840771,-500.0,9.993e-05,2]
[348232482,1736407840781,-500.0,9.993e-05,2]
[348232484,1736407840791,-500.0,9.993e-05,2]
[348232486,1736407840800,-500.0,9.993e-05,2]
[348232488,1736407840809,-500.0,9.993e-05,2]
[348232490,1736407840818,-500.0,9.993e-05,2]
[348232492,1736407840827,-313.4286998,9.993e-05,2]
[348232494,1736407840837,-500.0,9.993e-05,2]
[348232495,1736407840847,-500.0,9.993e-05,2]
[348232496,1736407840856,-500.0,9.993e-05,2]
[348232497,1736407840865,-507.04043359,9.993e-05,2]
[348232498,1736407840874,-500.0,9.993e-05,2]
[348232499,1736407840883,-500.0,9.993e-05,2]
[348232500,1736407840894,-415.58307039,9.993e-05,2]
[348232501,1736407840904,-1277.4,9.993e-05,2]
[348232503,1736407840913,-500.0,9.993e-05,2]
[348232505,1736407840924,-500.0,9.993e-05,2]
[348232506,1736407840934,-500.0,9.993e-05,2]
[348232509,1736407840945,-623.47840498,9.993e-05,2]
[348232511,1736407840955,-500.0,9.993e-05,2]
[348232512,1736407840964,-500.0,9.993e-05,2]
[348232515,1736407840973,-501.02207293,9.993e-05,2]
[348232517,1736407840982,-500.0,9.993e-05,2]
[348232518,1736407840991,-479.4239314,9.993e-05,2]
[348232520,1736407841001,-500.0,9.993e-05,2]
[348232523,1736407841010,-364.44962317,9.993e-05,2]
[348232525,1736407841020,-500.0,9.993e-05,2]
[348232526,1736407841029,-500.0,9.993e-05,2]
[348232528,1736407841038,-500.0,9.993e-05,2]
[348232531,1736407841048,-500.74944617,9.993e-05,2]
[348232532,1736407841057,-500.0,9.993e-05,2]
[348232534,1736407841067,-500.0,9.993e-05,2]
[348232536,1736407841076,-500.0,9.993e-05,2]
[348232539,1736407841086,-501.98482978,9.993e-05,2]
[348232540,1736407841095,-586.88,9.993e-05,2]
[348232560,1736407841250,-500.0,9.993e-05,2]
[348232564,1736407841297,-505.55447792,9.993e-05,2]
[348232566,1736407841306,-504.93216408,9.993e-05,2]
[348232568,1736407841317,-500.42750226,9.993e-05,2]
[348232570,1736407841327,-500.40706479,9.993e-05,2]
[348232572,1736407841336,-500.0,9.993e-05,2]
[348232574,1736407841345,-500.0,9.993e-05,2]
[348232576,1736407841355,-500.0,9.993e-05,2]
[348232578,1736407841365,-503.9150291,9.993e-05,2]
[348232580,1736407841374,-500.0,9.993e-05,2]
[348232582,1736407841385,-500.0,9.993e-05,2]
[348232584,1736407841395,-500.0,9.993e-05,2]
[348232586,1736407841404,-508.01167748,9.993e-05,2]
[348232588,1736407841414,-500.0,9.993e-05,2]
[348232590,1736407841423,-500.0,9.993e-05,2]
[348232592,1736407841432,-193.7229987,9.993e-05,2]
[348232594,1736407841442,-500.0,9.993e-05,2]
[348232596,1736407841451,-500.0,9.993e-05,2]
[348232598,1736407841460,-500.0,9.993e-05,2]
[348232599,1736407841470,-500.0,9.993e-05,2]
[348232601,1736407841479,-456.19673599,9.993e-05,2]
[348232603,1736407841488,-500.0,9.993e-05,2]
[348232605,1736407841497,-597.06,9.993e-05,2]
[348232607,1736407841507,-614.23,9.993e-05,2]
[348232609,1736407841517,-505.24769447,9.993e-05,2]
[348232611,1736407841528,-500.0,9.993e-05,2]
[348232613,1736407841537,-500.0,9.993e-05,2]
[348232615,1736407841546,-501.80797955,9.993e-05,2]
[348232617,1736407841555,-500.58688688,9.993e-05,2]
[348232619,1736407841564,-500.89320695,9.993e-05,2]
[348232621,1736407841573,-505.67442372,9.993e-05,2]
[348232623,1736407841582,-500.0,9.993e-05,2]
[348232625,1736407841591,-500.0,9.993e-05,2]
[348232627,1736407841600,-501.48552756,9.993e-05,2]
[348232629,1736407841609,-506.38414678,9.993e-05,2]
[348232631,1736407841618,-500.0,9.993e-05,2]
[348232633,1736407841627,-500.0,9.993e-05,2]
[348232635,1736407841638,-500.0,9.993e-05,2]
[348232637,1736407841647,-500.0,9.993e-05,2]
[348232639,1736407841656,-500.0,9.993e-05,2]
[348232641,1736407841666,-501.56651225,9.993e-05,2]
[348232643,1736407841675,-500.0,9.993e-05,2]
[348232645,1736407841684,-500.0,9.993e-05,2]
[348232647,1736407841693,-503.60175014,9.993e-05,2]
[348232649,1736407841703,-500.0,9.993e-05,2]
[348232651,1736407841712,-522.1907082,9.993e-05,2]
[348232653,1736407841721,-1316.08,9.993e-05,2]
[348232655,1736407841731,-507.63309179,9.993e-05,2]
[348232657,1736407841740,-500.0,9.993e-05,2]
[348232659,1736407841749,-500.44125431,9.993e-05,2]
[348232661,1736407841760,-500.0,9.993e-05,2]
[348232663,1736407841769,-500.0,9.993e-05,2]
[348232665,1736407841779,-503.44301646,9.993e-05,2]
[348232667,1736407841789,-500.0,9.993e-05,2]
[348232669,1736407841798,-500.0,9.993e-05,2]
[348232671,1736407841807,-500.0,9.993e-05,2]
[348232673,1736407841816,-500.0,9.993e-05,2]
[348232675,1736407841826,-500.0,9.993e-05,2]
[348232677,1736407841834,-505.33721338,9.993e-05,2]
[348232679,1736407841844,-501.67389147,9.993e-05,2]
[348232681,1736407841853,-501.05391324,9.993e-05,2]
[348232683,1736407841863,-500.0,9.993e-05,2]
[348232685,1736407841872,-500.0,9.993e-05,2]
[348232687,1736407841880,-500.0,9.993e-05,2]
[348232689,1736407841892,-500.0,9.993e-05,2]
[348232691,1736407841902,-500.0,9.993e-05,2]
[348232693,1736407841910,-500.0,9.993e-05,2]
[348232695,1736407841919,-500.0,9.993e-05,2]
[348232697,1736407841928,-500.0,9.993e-05,2]
[348232699,1736407841937,-500.0,9.993e-05,2]
[348232701,1736407841946,-500.0,9.993e-05,2]
[348232703,1736407841955,-500.0,9.993e-05,2]
[348232705,1736407841964,-500.0,9.993e-05,2]
[348232707,1736407841973,-500.0,9.993e-05,2]
[348232709,1736407841982,-500.0,9.993e-05,2]
[348232711,1736407841991,-500.0,9.993e-05,2]
[348232713,1736407842000,-500.0,9.993e-05,2]
[348232715,1736407842008,-500.0,9.993e-05,2]
[348232717,1736407842017,-500.0,9.993e-05,2]
[348232719,1736407842026,-500.0,9.993e-05,2]
[348232721,1736407842035,-500.0,9.993e-05,2]
[348232723,1736407842044,-500.0,9.993e-05,2]
[348232724,1736407842053,-500.0,9.993e-05,2]
[348232726,1736407842062,-500.0,9.993e-05,2]
[348232728,1736407842071,-502.92666051,9.993e-05,2]
[348232730,1736407842079,-184.20178722,9.993e-05,2]
[348232732,1736407842088,-501.73024803,9.993e-05,2]
[348232734,1736407842097,-500.0,9.993e-05,2]
[348232736,1736407842106,-501.5329746,9.993e-05,2]
[348232738,1736407842114,-500.0,9.993e-05,2]
[348232740,1736407842123,-501.7988762,9.993e-05,2]
[348232742,1736407842132,-500.0,9.993e-05,2]
[348232744,1736407842143,-500.0,9.993e-05,2]
[348232746,1736407842153,-500.0,9.993e-05,2]
[348232748,1736407842162,-530.92500671,9.993e-05,2]
[348232750,1736407842171,-500.0,9.993e-05,2]
[348232752,1736407842180,-500.0,9.993e-05,2]
[348232754,1736407842188,-500.91142037,9.993e-05,2]
[348232756,1736407842197,-500.0,9.993e-05,2]
[348232758,1736407842206,-500.0,9.993e-05,2]
[348232760,1736407842215,-500.0,9.993e-05,2]
[348232762,1736407842224,-500.82659125,9.993e-05,2]
[348232764,1736407842233,-500.0,9.993e-05,2]
[348232766,1736407842242,-500.0,9.993e-05,2]
[348232768,1736407842251,-500.0,9.993e-05,2]
[348232770,1736407842260,-500.0,9.993e-05,2]
[348232772,1736407842269,-501.05913023,9.993e-05,2]
[348232774,1736407842278,-500.38248434,9.993e-05,2]
[348232776,1736407842287,-500.0,9.993e-05,2]
[348232778,1736407842296,-500.0,9.993e-05,2]
[348232780,1736407842306,-500.0,9.993e-05,2]
[348232782,1736407842315,-500.0,9.993e-05,2]
[348232784,1736407842325,-500.0,9.993e-05,2]
[348232786,1736407842334,-500.0,9.993e-05,2]
[348232788,1736407842343,-500.0,9.993e-05,2]
[348232790,1736407842352,-500.0,9.993e-05,2]
[348232792,1736407842361,-500.0,9.993e-05,2]
[348232793,1736407842371,-501.65626048,9.993e-05,2]
[348232795,1736407842380,-500.0,9.993e-05,2]
[348232797,1736407842392,-500.0,9.993e-05,2]
[348232799,1736407842401,-500.0,9.993e-05,2]
[348232801,1736407842411,-500.0,9.993e-05,2]
[348232804,1736407842420,-500.0,9.993e-05,2]
[348232805,1736407842430,-500.0,9.993e-05,2]
[348232807,1736407842439,-500.0,9.993e-05,2]
[348232809,1736407842448,-500.0,9.993e-05,2]
[348232811,1736407842458,-486.68682093,9.993e-05,2]
[348232813,1736407842467,-500.0,9.993e-05,2]
[348232816,1736407842476,-500.0,9.993e-05,2]
[348232818,1736407842485,-500.0,9.993e-05,2]
[348232820,1736407842494,-500.13336716,9.993e-05,2]
[348232822,1736407842504,-507.70360765,9.993e-05,2]
[348232824,1736407842514,-500.0,9.993e-05,2]
[348232826,1736407842526,-500.0,9.993e-05,2]
[348232828,1736407842535,-500.0,9.993e-05,2]
[348232830,1736407842544,-500.0,9.993e-05,2]
[348232832,1736407842555,-500.0,9.993e-05,2]
[348232834,1736407842565,-500.0,9.993e-05,2]
[348232836,1736407842574,-500.0,9.993e-05,2]
[348232839,1736407842583,-500.0,9.993e-05,2]
[348232842,1736407842593,-500.0,9.993e-05,2]
[348232845,1736407842603,-500.0,9.993e-05,2]
[348232849,1736407842612,-500.0,9.993e-05,2]
[348232853,1736407842622,-500.0,9.993e-05,2]
[348232855,1736407842631,-500.0,9.993e-05,2]
[348232857,1736407842642,-500.0,9.993e-05,2]
[348232860,1736407842651,-500.0,9.993e-05,2]
[348232862,1736407842659,-500.0,9.993e-05,2]
[348232864,1736407842668,-500.0,9.993e-05,2]
[348232866,1736407842677,-500.0,9.993e-05,2]
[348232868,1736407842686,-503.30308342,9.993e-05,2]
[348232870,1736407842696,-500.0,9.993e-05,2]
[348232872,1736407842705,-501.50299159,9.993e-05,2]
[348232874,1736407842714,-556.72216282,9.993e-05,2]
[348232876,1736407842723,-500.0,9.993e-05,2]
[348232878,1736407842732,-500.0,9.993e-05,2]
[348232880,1736407842741,-500.0,9.993e-05,2]
[348232882,1736407842750,-500.0,9.993e-05,2]
[348232884,1736407842758,-500.0,9.993e-05,2]
[348232886,1736407842767,-400.51545776,9.993e-05,2]
[348232888,1736407842776,-500.0,9.993e-05,2]
[348232890,1736407842785,-500.0,9.993e-05,2]
[348232892,1736407842794,-500.0,9.993e-05,2]
[348232893,1736407842803,-516.80274744,9.993e-05,2]
[348232895,1736407842813,-587.55,9.993e-05,2]
[348232897,1736407842823,-500.0,9.993e-05,2]
[348232899,1736407842834,-500.0,9.993e-05,2]
[348232900,1736407842843,-500.0,9.993e-05,2]
[348232901,1736407842852,-500.0,9.993e-05,2]
[348232902,1736407842861,-500.0,9.993e-05,2]
[348232903,1736407842871,-500.0,9.993e-05,2]
[348232904,1736407842880,-500.0,9.993e-05,2]
[348232905,1736407842892,-500.0,9.993e-05,2]
[348232906,1736407842901,-500.0,9.993e-05,2]
[348232907,1736407842910,-500.0,9.993e-05,2]
[348232908,1736407842919,-500.0,9.993e-05,2]
[348232909,1736407842928,-500.0,9.993e-05,2]
[348232910,1736407842937,-500.0,9.993e-05,2]
[348232911,1736407842946,-500.0,9.993e-05,2]
[348232912,1736407842954,-500.0,9.993e-05,2]
[348232913,1736407842963,-500.0,9.993e-05,2]
[348232914,1736407842972,-500.0,9.993e-05,2]
[348232915,1736407842980,-500.0,9.993e-05,2]
[348232916,1736407842989,-500.0,9.993e-05,2]
[348232917,1736407842998,-500.0,9.993e-05,2]
[348232918,1736407843007,-500.0,9.993e-05,2]
[348232919,1736407843015,-1449.13,9.993e-05,2]
[348232920,1736407843024,-500.0,9.993e-05,2]
[348232921,1736407843033,-500.0,9.993e-05,2]
[348232922,1736407843042,-500.0,9.993e-05,2]
[348232923,1736407843052,-500.0,9.993e-05,2]
[348232924,1736407843061,-500.0,9.993e-05,2]
[348232925,1736407843070,-500.0,9.993e-05,2]
[348232926,1736407843079,-782.39,9.993e-05,2]
[348232927,1736407843089,-500.0,9.993e-05,2]
[348232928,1736407843099,-500.0,9.993e-05,2]
[348232929,1736407843109,-500.0,9.993e-05,2]
[348232930,1736407843119,-500.0,9.993e-05,2]
[348232931,1736407843128,-500.0,9.993e-05,2]
[348232932,1736407843138,-500.0,9.993e-05,2]
[348232933,1736407843151,-500.0,9.993e-05,2]
[348232934,1736407843160,-500.0,9.993e-05,2]
[348232935,1736407843170,-510.11680427,9.993e-05,2]
[348232936,1736407843179,-500.0,9.993e-05,2]
[348232937,1736407843188,-574.8,9.993e-05,2]
[348232938,1736407843197,-500.0,9.993e-05,2]
[348232939,1736407843206,-426.46030576,9.993e-05,2]
[348232940,1736407843215,-722.65,9.993e-05,2]
[348232941,1736407843224,-709.05,9.993e-05,2]
[348232942,1736407843232,-500.0,9.993e-05,2]
[348232943,1736407843241,-500.0,9.993e-05,2]
[348232944,1736407843250,-500.0,9.993e-05,2]
[348232945,1736407843259,-500.0,9.993e-05,2]
[348232946,1736407843268,-500.0,9.993e-05,2]
[348232947,1736407843277,-500.0,9.993e-05,2]
[348232948,1736407843286,-500.0,9.993e-05,2]
[348232949,1736407843295,-727.73,9.993e-05,2]
[348232950,1736407843305,-501.92403733,9.993e-05,2]
[348232951,1736407843314,-499.77827883,9.993e-05,2]
[348232952,1736407843323,-502.06430385,9.993e-05,2]
[348232953,1736407843332,-500.0,9.993e-05,2]
[348232954,1736407843339,-502.03508118,9.993e-05,2]
[348232955,1736407843346,-500.0,9.993e-05,2]
[348232956,1736407843352,-500.0,9.993e-05,2]
[348232957,1736407843359,-500.0,9.993e-05,2]
[348232958,1736407843366,-500.0,9.993e-05,2]
[348232959,1736407843374,-500.99393048,9.993e-05,2]
[348232960,1736407843381,-223.33134866,9.993e-05,2]
[348232961,1736407843391,-502.67279092,9.993e-05,2]
[348232962,1736407843398,-500.0,9.993e-05,2]
[348232963,1736407843405,-500.0,9.993e-05,2]
[348232964,1736407843413,-500.0,9.993e-05,2]
[348232965,1736407843421,-598.94,9.993e-05,2]
[348232966,1736407843428,-500.0,9.993e-05,2]
[348232967,1736407843437,-500.0,9.993e-05,2]
[348232968,1736407843447,-178.47413262,9.993e-05,2]
[348232969,1736407843456,-505.5086575,9.993e-05,2]
[348232970,1736407843465,-500.0,9.993e-05,2]
[348232971,1736407843475,-3486.11,9.993e-05,2]
[348232972,1736407843485,-500.0,9.993e-05,2]
[348232973,1736407843495,-503.14408403,9.993e-05,2]
[348232974,1736407843504,-500.0,9.993e-05,2]
[348232975,1736407843517,-500.97289918,9.993e-05,2]
[348232976,1736407843528,-500.0,9.993e-05,2]
[348232977,1736407843538,-500.0,9.993e-05,2]
[348232978,1736407843547,-500.0,9.993e-05,2]
[348232979,1736407843556,-500.0,9.993e-05,2]
[348232980,1736407843566,-500.0,9.993e-05,2]
[348232981,1736407843576,-503.2828646,9.993e-05,2]
[348232982,1736407843586,-500.0,9.993e-05,2]
[348232983,1736407843596,-500.0,9.993e-05,2]
[348232984,1736407843606,-1423.95,9.993e-05,2]
[348232985,1736407843615,-500.0,9.993e-05,2]
[348232986,1736407843625,-502.06503944,9.993e-05,2]
[348232987,1736407843634,-500.0,9.993e-05,2]
[348232988,1736407843645,-500.0,9.993e-05,2]
[348232989,1736407843654,-506.93765194,9.993e-05,2]
[348232990,1736407843663,-500.0,9.993e-05,2]
[348232991,1736407843673,-542.22,9.993e-05,2]
[348232992,1736407843683,-504.10041748,9.993e-05,2]
[348232993,1736407843693,-500.0,9.993e-05,2]
[348232994,1736407843703,-500.0,9.993e-05,2]
[348232995,1736407843713,-641.58,9.993e-05,2]
[348232996,1736407843722,-507.3711613,9.993e-05,2]
[348232997,1736407843732,-500.0,9.993e-05,2]
[348232998,1736407843742,-528.31,9.993e-05,2]
[348232999,1736407843751,-503.64316853,9.993e-05,2]
[348233000,1736407843761,-500.0,9.993e-05,2]
[348233001,1736407843770,-500.0,9.993e-05,2]
[348233002,1736407843779,-500.0,9.993e-05,2]
[348233003,1736407843789,-500.0,9.993e-05,2]
[348233004,1736407843798,-583.10214431,9.993e-05,2]
[348233005,1736407843807,-500.0,9.993e-05,2]
[348233006,1736407843817,-500.0,9.993e-05,2]
[348233007,1736407843827,-1008.83,9.993e-05,2]
[348233008,1736407843836,-1552.36,9.993e-05,2]
[348233009,1736407843846,-500.0,9.993e-05,2]
[348233010,1736407843856,-740.95,9.993e-05,2]
[348233011,1736407843866,-500.0,9.993e-05,2]
[348233012,1736407843876,-1124.87,9.993e-05,2]
[348233013,1736407843886,-1054.07,9.993e-05,2]
[348233014,1736407843897,-502.52209572,9.993e-05,2]
[348233015,1736407843907,-500.0,9.993e-05,2]
[348233016,1736407843917,-1054.13,9.993e-05,2]
[348233017,1736407843927,-500.0,9.993e-05,2]
[348233018,1736407843937,-1424.21,9.993e-05,2]
[348233019,1736407843947,-500.0,9.993e-05,2]
[348233020,1736407843956,-500.0,9.993e-05,2]
[348233021,1736407843966,-500.0,9.993e-05,2]
[348233022,1736407843975,-501.59536923,9.993e-05,2]
[348233023,1736407843986,-500.0,9.993e-05,2]
[348233024,1736407843996,-500.0,9.993e-05,2]
[348233025,1736407844006,-500.0,9.993e-05,2]
[348233026,1736407844016,-2093.93,9.993e-05,2]
[348233027,1736407844025,-500.0,9.993e-05,2]
[348233028,1736407844036,-548.14323974,9.993e-05,2]
[348233029,1736407844046,-500.0,9.993e-05,2]
[348233030,1736407844056,-502.47281498,9.993e-05,2]
[348233031,1736407844066,-1723.16,9.993e-05,2]
[348233032,1736407844077,-500.0,9.993e-05,2]
[348233033,1736407844086,-502.6579094,9.993e-05,2]
[348233034,1736407844095,-500.0,9.993e-05,2]
[348233035,1736407844105,-500.0,9.993e-05,2]
[348233036,1736407844114,-500.0,9.993e-05,2]
[348233037,1736407844123,-1512.27,9.993e-05,2]
[348233038,1736407844133,-552.47892426,9.993e-05,2]
[348233039,1736407844145,-500.0,9.993e-05,2]
[348233040,1736407844155,-503.08665867,9.993e-05,2]
[348233041,1736407844165,-759.26,9.993e-05,2]
[348233042,1736407844174,-500.0,9.993e-05,2]
[348233043,1736407844184,-500.0,9.993e-05,2]
[348233044,1736407844194,-501.59513373,9.993e-05,2]
[348233045,1736407844204,-500.0,9.993e-05,2]
[348233046,1736407844214,-500.0,9.993e-05,2]
[348233047,1736407844223,-500.0,9.993e-05,2]
[348233048,1736407844233,-502.68269469,9.993e-05,2]